fUSD/lending_fUSD_20260202
["ID","MTS","AMOUNT","RATE_DAILY","PERIOD"]
[404343283,1770070250420,-639.93,0.00017998,2]
[404343284,1770070250430,-639.93,0.00017998,2]
[404343285,1770070250439,-640.02279054,0.00017998,2]
[404343286,1770070250447,-1230.09,0.00017998,2]
[404343287,1770070250457,-1230.09,0.00017998,2]
[404343288,1770070250466,-1230.09,0.00017998,2]
[404343289,1770070250475,-1230.09,0.00017998,2]
[404343290,1770070250485,-1230.19124694,0.00017998,2]
[404343291,1770070250494,-596.97,0.00017998,2]
[404343292,1770070250503,-596.97,0.00017998,2]
[404343293,1770070250512,-596.97,0.00017998,2]
[404343294,1770070250521,-596.97,0.00017998,2]
[404343295,1770070250530,-597.07967228,0.00017998,2]
[404343296,1770070250540,-150.0,0.00017999,2]
[404343297,1770070250549,-150.0,0.00017999,2]
[404343298,1770070250558,-150.0,0.00017999,2]
[404343299,1770070250567,-289.94091094,0.00017999,2]
[404343300,1770070250576,-202.144,0.00017999,2]
[404343301,1770070250585,-500.0,0.00017999,2]
[404343302,1770070250595,-408.83165373,0.00017999,2]
[404343303,1770070250604,-700.51,0.00017999,2]
[404343304,1770070250614,-700.51,0.00017999,2]
[404343305,1770070250623,-700.51,0.00017999,2]
[404343306,1770070250632,-700.51,0.00017999,2]
[404343307,1770070250641,-700.51,0.00017999,2]
[404343308,1770070250651,-700.51,0.00017999,2]
[404343309,1770070250660,-700.51,0.00017999,2]
[404343310,1770070250669,-700.51,0.00017999,2]
[404343311,1770070250678,-700.52484432,0.00017999,2]
[404343312,1770070250687,-324.98118221,0.00017999,2]
[404343313,1770070250697,-300.0,0.00017999,2]
[404343314,1770070250706,-300.0,0.00017999,2]
[404343315,1770070250715,-666.0,0.00017999,2]
[404343316,1770070250725,-635.64,0.00017999,2]
[404343317,1770070250735,-635.64,0.00017999,2]
[404343318,1770070250744,-635.64,0.00017999,2]
[404343319,1770070250754,-635.64,0.00017999,2]
[404343320,1770070250763,-635.64,0.00017999,2]
[404343321,1770070250772,-635.64,0.00017999,2]
[404343322,1770070250782,-635.64,0.00017999,2]
[404343323,1770070250791,-635.64,0.00017999,2]
[404343324,1770070250800,-635.83897736,0.00017999,2]
[404343325,1770070250809,-300.0,0.00017999,2]
[404343326,1770070250819,-300.0,0.00017999,2]
[404343327,1770070250828,-300.0,0.00017999,2]
[404343328,1770070250837,-300.0,0.00017999,2]
[404343329,1770070250846,-666.0,0.00017999,2]
[404343330,1770070250855,-300.0,0.00017999,2]
[404343331,1770070250864,-666.0,0.00017999,2]
[404343332,1770070250873,-557399.61445864,0.00018,2]
[404343333,1770070250884,-600.01972348,0.00018,2]
[404343334,1770070250894,-1191.99317303,0.00018,2]
[404343335,1770070250903,-525.23948875,0.00018,2]
[404343336,1770070250913,-150.0,0.00018,7]
[404343337,1770070250923,-376.0,0.00018,2]
[404343338,1770070250932,-376.0,0.00018,2]
[404343339,1770070250941,-409.0,0.00018,2]
[404343340,1770070250950,-383.0,0.00018,2]
[404343341,1770070250959,-376.0,0.00018,2]
[404343342,1770070250968,-376.0,0.00018,2]
[404343343,1770070250977,-376.0,0.00018,2]
[404343344,1770070250987,-376.0,0.00018,2]
[404343345,1770070250995,-376.0,0.00018,2]
[404343346,1770070251005,-376.0,0.00018,2]
[404343347,1770070251013,-376.0,0.00018,2]
[404343348,1770070251022,-376.0,0.00018,2]
[404343349,1770070251031,-376.0,0.00018,2]
[404343350,1770070251040,-376.0,0.00018,2]
[404343351,1770070251049,-376.0,0.00018,2]
[404343352,1770070251058,-376.0,0.00018,2]
[404343353,1770070251067,-376.0,0.00018,2]
[404343354,1770070251076,-376.0,0.00018,2]
[404343355,1770070251085,-376.0,0.00018,2]
[404343356,1770070251095,-376.0,0.00018,2]
[404343357,1770070251104,-376.0,0.00018,2]
[404343358,1770070251114,-376.0,0.00018,2]
[404343359,1770070251123,-376.0,0.00018,2]
[404343360,1770070251132,-376.0,0.00018,2]
[404343361,1770070251141,-376.0,0.00018,2]
[404343362,1770070251150,-376.0,0.00018,2]
[404343363,1770070251159,-376.0,0.00018,2]
[404343364,1770070251168,-376.0,0.00018,2]
[404343365,1770070251178,-376.0,0.00018,2]
[404343366,1770070251188,-376.0,0.00018,2]
[404343367,1770070251197,-376.0,0.00018,2]
[404343368,1770070251206,-376.0,0.00018,2]
[404343369,1770070251216,-376.0,0.00018,2]
[404343370,1770070251228,-376.0,0.00018,2]
[404343371,1770070251237,-376.0,0.00018,2]
[404343372,1770070251247,-376.0,0.00018,2]
[404343373,1770070251256,-376.0,0.00018,2]
[404343374,1770070251266,-376.0,0.00018,2]
[404343375,1770070251275,-376.0,0.00018,2]
[404343376,1770070251284,-376.0,0.00018,2]
[404343377,1770070251294,-376.0,0.00018,2]
[404343378,1770070251303,-376.0,0.00018,2]
[404343379,1770070251312,-376.0,0.00018,2]
[404343380,1770070251321,-376.0,0.00018,2]
[404343381,1770070251330,-376.0,0.00018,2]
[404343382,1770070251339,-376.0,0.00018,2]
[404343383,1770070251348,-376.0,0.00018,2]
[404343384,1770070251358,-376.0,0.00018,2]
[404343385,1770070251367,-376.0,0.00018,2]
[404343386,1770070251376,-376.0,0.00018,2]
[404343387,1770070251386,-376.0,0.00018,2]
[404343388,1770070251395,-376.0,0.00018,2]
[404343389,1770070251404,-376.0,0.00018,2]
[404343390,1770070251414,-376.0,0.00018,2]
[404343391,1770070251423,-376.0,0.00018,2]
[404343392,1770070251432,-232.4730334,0.00018,2]
[404343393,1770070251441,-500.0,0.00018,2]
[404343394,1770070251451,-500.0,0.00018,2]
[404343395,1770070251460,-500.0,0.00018,2]
[404343396,1770070251470,-500.0,0.00018,2]
[404343397,1770070251479,-500.0,0.00018,2]
[404343398,1770070251488,-500.0,0.00018,2]
[404343399,1770070251497,-500.0,0.00018,2]
[404343400,1770070251506,-301.52589831,0.00018,2]
[404343401,1770070251515,-5888.0,0.00018003,2]
[404343402,1770070251524,-205.0,0.00018023,2]
[404343403,1770070251533,-5888.0,0.00018054,2]
[404343404,1770070251543,-5888.0,0.00018061,2]
[404343405,1770070251552,-1000.0,0.00018082,2]
[404343406,1770070251562,-205.0,0.00018089,2]
[404343407,1770070251571,-1780.35114252,0.000181,2]
[404343408,1770070251581,-205.0,0.00018103,2]
[404343409,1770070251591,-205.0,0.0001811,2]
[404343410,1770070251600,-201.39718201,0.00018116,2]
[404343411,1770070251609,-181.63,0.00018117,2]
[404343412,1770070251619,-200.0,0.00018128,2]
[404343413,1770070251628,-150.01591605,0.00018133,2]
[404343414,1770070251637,-359.76179104,0.00018141,2]
[404343415,1770070251647,-3000.0,0.00018212,2]
[404343416,1770070251657,-500.0,0.0001822,2]
[404343417,1770070251666,-181.63,0.00018236,2]
[404343418,1770070251675,-5888.0,0.00018245,2]
[404343419,1770070251684,-864.56091313,0.00018256,2]
[404343420,1770070251694,-205.0,0.00018283,2]
[404343421,1770070251704,-5888.0,0.00018288,2]
[404343422,1770070251713,-280.0,0.00018292,2]
[404343423,1770070251723,-205.0,0.00018293,2]
[404343424,1770070251732,-1000.0,0.00018306,2]
[404343425,1770070251742,-205.0,0.00018314,2]
[404343426,1770070251752,-205.0,0.00018317,2]
[404343427,1770070251821,-280.10338663,0.00018344,2]
[404343428,1770070251830,-5888.0,0.00018344,2]
[404343429,1770070251839,-300.0,0.00018355,2]
[404343430,1770070251848,-300.0,0.00018355,2]
[404343431,1770070251857,-666.0,0.00018355,2]
[404343432,1770070251866,-300.0,0.00018355,2]
[404343433,1770070251875,-300.0,0.00018355,2]
[404343434,1770070251884,-300.0,0.00018355,2]
[404343435,1770070251893,-719.47771155,0.00018355,2]
[404343436,1770070251902,-300.0,0.00018355,2]
[404343437,1770070251911,-666.0,0.00018355,2]
[404343438,1770070251919,-1850.93477356,0.00018356,2]
[404343439,1770070251928,-88530.96,0.00018356,2]
[404343440,1770070251937,-1000.0,0.00018356,2]
[404343441,1770070251947,-1000.0,0.00018362,2]
[404343442,1770070251955,-1000.0,0.00018362,2]
[404343443,1770070251964,-747.502,0.00018362,2]
[404343444,1770070251973,-5800.0,0.00018413,2]
[404343445,1770070251982,-5888.0,0.00018415,2]
[404343446,1770070251990,-280.03725112,0.00018418,2]
[404343447,1770070251999,-1910.18787185,0.00018418,2]
[404343448,1770070252008,-233.51889341,0.00018418,2]
[404343449,1770070252018,-205.0,0.00018419,2]
[404343450,1770070252027,-159.60859955,0.0001845,2]
[404343451,1770070252035,-1000.0,0.00018477,2]
[404343452,1770070252044,-410.61,0.00018609,2]
[404343453,1770070252053,-1000.0,0.0001863,2]
[404343454,1770070252062,-150.0,0.0001863,2]
[404343455,1770070252071,-205.0,0.00018635,2]
[404343456,1770070252080,-5888.0,0.00018635,2]
[404343457,1770070252088,-205.0,0.00018641,2]
[404343458,1770070252097,-205.0,0.00018718,2]
[404343459,1770070252107,-2172.44734327,0.0001876,2]
[404343460,1770070252115,-500.0,0.00018768,2]
[404343461,1770070252124,-25000.0,0.00018773,3]
[404343462,1770070252133,-25000.0,0.00018781,3]
[404343463,1770070252142,-25000.0,0.0001879,3]
[404343464,1770070252151,-25000.0,0.00018799,3]
[404343465,1770070252159,-25000.0,0.00018808,3]
[404343466,1770070252167,-25000.0,0.00018817,3]
[404343467,1770070252176,-25000.0,0.00018825,3]
[404343468,1770070252185,-25000.0,0.00018834,3]
[404343469,1770070252193,-25000.0,0.00018843,3]
[404343470,1770070252203,-20453.46079029,0.0001885,3]
[404343471,1770070252212,-25000.0,0.00018852,3]
[404343472,1770070252223,-25000.0,0.00018861,3]
[404343473,1770070252232,-25000.0,0.00018869,3]
[404343474,1770070252241,-25000.0,0.00018878,3]
[404343475,1770070252250,-25000.0,0.00018887,3]
[404343476,1770070252258,-16792.79177488,0.00018888,2]
[404343477,1770070252269,-300.0,0.00018899,2]
[404343478,1770070252278,-300.0,0.00018899,2]
[404343479,1770070252287,-666.0,0.00018899,2]
[404343480,1770070252298,-300.0,0.00018899,2]
[404343481,1770070252307,-300.0,0.00018899,2]
[404343482,1770070252315,-300.0,0.00018899,2]
[404343483,1770070252324,-300.0,0.00018899,2]
[404343484,1770070252332,-666.0,0.00018899,2]
[404343485,1770070252341,-219.544,0.000189,2]
[404343486,1770070252350,-93778.56307633,0.000189,2]
[404343487,1770070252359,-1000.0,0.00018904,2]
[404343488,1770070252368,-290.39862941,0.00018966,2]
[404343489,1770070252377,-1980.86482311,0.00018966,2]
[404343490,1770070252386,-242.15909246,0.00018966,2]
[404343491,1770070252395,-395.14024062,0.00019,2]
[404343492,1770070252404,-5171.63525443,0.00019,2]
[404343493,1770070252412,-20976.29068396,0.00019,2]
[404343494,1770070252423,-350.0,0.00019,2]
[404343495,1770070252432,-503.0,0.00019,2]
[404343496,1770070252440,-12649.0,0.00019176,2]
[404343497,1770070252450,-300.0,0.00019177,2]
[404343498,1770070252459,-724.96374107,0.00019177,2]
[404343499,1770070252468,-300.0,0.00019177,2]
[404343500,1770070252478,-300.0,0.00019177,2]
[404343501,1770070252487,-300.0,0.00019177,2]
[404343502,1770070252496,-300.0,0.00019177,2]
[404343503,1770070252505,-666.0,0.00019177,2]
[404343504,1770070252514,-500.0,0.00019178,2]
[404343505,1770070252523,-500.0,0.00019178,2]
[404343506,1770070252532,-500.0,0.00019178,2]
[404343507,1770070252541,-500.0,0.00019178,2]
[404343508,1770070252551,-500.0,0.00019178,2]
[404343509,1770070252560,-500.0,0.00019178,2]
[404343510,1770070252569,-500.0,0.00019178,2]
[404343511,1770070252578,-500.0,0.00019178,2]
[404343512,1770070252587,-500.0,0.00019178,2]
[404343513,1770070252597,-500.0,0.00019178,2]
[404343514,1770070252606,-500.0,0.00019178,2]
[404343515,1770070252615,-380.60929144,0.00019178,2]
[404343516,1770070252625,-500.0,0.00019178,2]
[404343517,1770070252634,-500.0,0.00019178,2]
[404343518,1770070252643,-500.0,0.00019178,2]
[404343519,1770070252652,-500.0,0.00019178,2]
[404343520,1770070252661,-3003.07448898,0.00019178,2]
[404343521,1770070252670,-500.0,0.00019178,2]
[404343522,1770070252679,-500.0,0.00019178,2]
[404343523,1770070252688,-500.0,0.00019178,2]
[404343524,1770070252697,-500.0,0.00019178,2]
[404343525,1770070252707,-500.0,0.00019178,2]
[404343526,1770070252717,-500.0,0.00019178,2]
[404343527,1770070252726,-500.0,0.00019178,2]
[404343528,1770070252735,-500.0,0.00019178,2]
[404343529,1770070252745,-500.0,0.00019178,2]
[404343530,1770070252754,-341.42650401,0.00019178,2]
[404343531,1770070252763,-450.0,0.00019178,2]
[404343532,1770070252776,-20146.33,0.00019178,2]
[404343533,1770070252786,-150.0,0.00019178,2]
[404343534,1770070252795,-1000.0,0.00019178,2]
[404343535,1770070252804,-250.0,0.00019178,2]
[404343536,1770070252814,-160.87049508,0.00019178,2]
[404343537,1770070252823,-150.0,0.00019178,2]
[404343538,1770070252832,-159.60859955,0.00019252,2]
[404343539,1770070252841,-150.01591605,0.00019294,2]
[404343540,1770070252850,-500.0,0.00019316,2]
[404343541,1770070252859,-1000.0,0.00019452,2]
[404343542,1770070252868,-500.0,0.00019479,2]
[404343543,1770070252877,-500.0,0.00019507,2]
[404343544,1770070252886,-373.07297731,0.0001951,2]
[404343545,1770070252895,-621.78829552,0.00019512,2]
[404343546,1770070252904,-775.47832561,0.00019512,2]
[404343547,1770070252913,-301.1433787,0.00019514,2]
[404343548,1770070252922,-2054.15682157,0.00019514,2]
[404343549,1770070252931,-251.11897888,0.00019514,2]
[404343550,1770070252941,-410.61,0.00019539,2]
[404343551,1770070252950,-271.46575438,0.00019543,2]
[404343552,1770070252959,-500.0,0.00019612,2]
[404343553,1770070252972,-162.264,0.00019637,2]
[404343554,1770070252980,-616.0,0.00019637,2]
[404343555,1770070252990,-1334.0,0.00019637,2]
[404343556,1770070252999,-165.79,0.00019658,2]
[404343557,1770070253010,-1410.0,0.00019664,2]
[404343558,1770070253019,-1277.265,0.00019664,2]
[404343559,1770070253029,-163.0,0.00019664,2]
[404343560,1770070253039,-1219.332,0.00019674,2]
[404343561,1770070253049,-917.0,0.00019674,2]
[404343562,1770070253058,-1384.144,0.00019674,2]
[404343563,1770070253068,-2465.108,0.00019674,2]
[404343564,1770070253078,-6579.0,0.00019674,2]
[404343565,1770070253088,-3253.0,0.00019674,2]
[404343566,1770070253098,-250.0,0.00019726,2]
[404343567,1770070253108,-1000.0,0.00019726,2]
[404343568,1770070253117,-350.0,0.00019726,2]
[404343569,1770070253127,-250.0,0.00019726,2]
[404343570,1770070253136,-500.0,0.00019753,2]
[404343571,1770070253146,-155.0,0.00019799,2]
[404343572,1770070253156,-503.0,0.00019836,2]
[404343573,1770070253175,-500.0,0.00019864,2]
[404343574,1770070253185,-300.0,0.00019999,2]
[404343575,1770070253194,-300.0,0.00019999,2]
[404343576,1770070253204,-391.37301584,0.00019999,2]
[404343577,1770070253214,-300.0,0.00019999,2]
[404343578,1770070253225,-300.0,0.00019999,2]
[404343579,1770070253235,-1534.07115096,0.0002,2]
[404343580,1770070253245,-176.59729255,0.0002,2]
[404343581,1770070253254,-25608.48792622,0.0002,2]
[404343582,1770070253265,-2464.68,0.0002,2]
[404343583,1770070253276,-3950.0,0.0002,2]
[404343584,1770070253286,-1295.1801523,0.0002,2]
[404343585,1770070253296,-1045.48156087,0.0002,2]
[404343586,1770070253308,-2865.04978677,0.0002,2]
[404343587,1770070253318,-12930.4366456,0.0002,2]
[404343588,1770070253327,-152.0,0.0002,2]
[404343589,1770070253337,-1999.0,0.0002,2]
[404343590,1770070253347,-8720.0,0.0002001,2]
[404343591,1770070253357,-159.60859955,0.00020055,2]
[404343592,1770070253370,-260.4103811,0.00020062,2]
[404343593,1770070253380,-35759.0,0.00020193,2]
[404343594,1770070253390,-300.0,0.00020205,2]
[404343595,1770070253400,-300.0,0.00020205,2]
[404343596,1770070253410,-300.0,0.00020205,2]
[404343597,1770070253420,-300.0,0.00020205,2]
[404343598,1770070253430,-350.0,0.00020274,2]
[404343599,1770070253440,-450.0,0.00020274,2]
[404343600,1770070253450,-264.12932827,0.00020274,2]
[404343601,1770070253460,-500.0,0.00020412,2]
[404343602,1770070253471,-150.01591605,0.00020456,2]
[404343603,1770070253482,-410.61,0.0002047,2]
[404343604,1770070253492,-150.0,0.0002049,2]
[404343605,1770070253502,-150.0,0.0002049,2]
[404343606,1770070253513,-150.0,0.0002049,2]
[404343607,1770070253523,-150.0,0.0002049,2]
[404343608,1770070253534,-170.0,0.0002049,2]
[404343609,1770070253545,-150.0,0.0002049,2]
[404343610,1770070253557,-150.0,0.0002049,2]
[404343611,1770070253568,-150.0,0.0002049,2]
[404343612,1770070253577,-150.0,0.0002049,2]
[404343613,1770070253587,-150.0,0.0002049,2]
[404343614,1770070253598,-154.61,0.00020548,2]
[404343615,1770070253608,-21544.3,0.00020548,2]
[404343616,1770070253618,-270.0455652,0.0002061,2]
[404343617,1770070253629,-503.0,0.00020671,3]
[404343618,1770070253639,-22676.090458,0.000207,2]
[404343619,1770070253649,-200.896366,0.000208,2]
[404343620,1770070253660,-450.0,0.00020822,2]
[404343621,1770070253671,-550.0,0.00020822,2]
[404343622,1770070253681,-159.60859955,0.00020857,2]
[404343623,1770070253691,-386.87667747,0.00020879,2]
[404343624,1770070253701,-300.0,0.00020999,2]
[404343625,1770070253711,-300.0,0.00020999,2]
[404343626,1770070253721,-20000.0,0.00021,2]
[404343627,1770070253732,-40000.0,0.00021,2]
[404343628,1770070253742,-1194.5330497,0.00021,2]
[404343629,1770070253754,-197.1676119,0.00021,2]
[404343630,1770070253764,-190223.35736012,0.00021,2]
[404343631,1770070253775,-187100.5175304,0.00021,2]
[404343632,1770070253785,-400.0,0.00021,2]
[404343633,1770070253795,-858.0,0.00021011,2]
[404343634,1770070253806,-12528.98,0.00021068,2]
[404343635,1770070253816,-17709.0,0.00021093,2]
[404343636,1770070253826,-640507.1700782,0.00021098,2]
[404343637,1770070253836,-280.03725112,0.00021158,2]
[404343638,1770070253847,-16348.0,0.00021181,2]
[404343639,1770070253858,-6384.87,0.0002137,2]
[404343640,1770070253870,-550.0,0.0002137,2]
[404343641,1770070253880,-650.0,0.0002137,2]
[404343642,1770070253890,-410.61,0.000214,2]
[404343643,1770070253900,-300.0,0.00021499,2]
[404343644,1770070253910,-57604.9766364,0.000215,2]
[404343645,1770070253920,-222.40959499,0.000215,2]
[404343646,1770070253931,-503.0,0.00021507,4]
[404343647,1770070253941,-155.0,0.00021599,2]
[404343648,1770070253951,-315.0,0.000216,2]
[404343649,1770070253962,-150.01591605,0.00021618,2]
[404343650,1770070253972,-2877.0,0.00021651,2]
[404343651,1770070253982,-159.60859955,0.00021659,2]
[404343652,1770070253992,-290.39862941,0.00021706,2]
[404343653,1770070254002,-204.43,0.00021859,2]
[404343654,1770070254012,-5000.0,0.00021918,2]
[404343655,1770070254023,-650.0,0.00021918,2]
[404343656,1770070254034,-800.0,0.00021918,4]
[404343657,1770070254044,-800.0,0.00021918,4]
[404343658,1770070254054,-800.0,0.00021918,4]
[404343659,1770070254065,-800.0,0.00021918,4]
[404343660,1770070254075,-800.0,0.00021918,4]
[404343661,1770070254086,-800.0,0.00021918,4]
[404343662,1770070254096,-800.0,0.00021918,4]
[404343663,1770070254107,-800.0,0.00021918,4]
[404343664,1770070254117,-750.0,0.00021918,2]
[404343665,1770070254128,-800.0,0.00021918,4]
[404343666,1770070254138,-800.0,0.00021918,4]
[404343667,1770070254148,-800.0,0.00021918,4]
[404343668,1770070254159,-800.0,0.00021918,4]
[404343669,1770070254170,-800.0,0.00021918,4]
[404343670,1770070254180,-800.0,0.00021918,4]
[404343671,1770070254190,-800.0,0.00021918,4]
[404343672,1770070254200,-800.0,0.00021918,4]
[404343673,1770070254210,-503.33496424,0.00021949,2]
[404343674,1770070254220,-7230.28,0.00022,2]
[404343675,1770070254232,-78573.88736207,0.00022,4]
[404343676,1770070254242,-163.53,0.00022,2]
[404343677,1770070254251,-160.0,0.00022,2]
[404343678,1770070254262,-200.0,0.00022,2]
[404343679,1770070254272,-601.9720403,0.00022002,2]
[404343680,1770070254282,-495.10716587,0.000221,2]
[404343681,1770070254293,-240.58043222,0.0002211,2]
[404343682,1770070254302,-1503.0,0.0002215,2]
[404343683,1770070254312,-151.0,0.0002215,2]
[404343684,1770070254322,-1503.0,0.0002215,2]
[404343685,1770070254332,-153.79594173,0.0002215,2]
[404343686,1770070254342,-151.0,0.0002215,2]
[404343687,1770070254351,-1503.0,0.0002215,2]
[404343688,1770070254361,-151.0,0.0002215,2]
[404343689,1770070254370,-1503.0,0.0002215,2]
[404343690,1770070254380,-151.0,0.0002215,2]
[404343691,1770070254389,-1503.0,0.0002215,2]
[404343692,1770070254399,-151.0,0.0002215,2]
[404343693,1770070254409,-1503.0,0.0002215,2]
[404343694,1770070254419,-151.0,0.0002215,2]
[404343695,1770070254428,-151.0,0.0002215,2]
[404343696,1770070254438,-151.0,0.0002215,2]
[404343697,1770070254447,-151.0,0.0002215,2]
[404343698,1770070254457,-151.0,0.0002215,2]
[404343699,1770070254467,-151.0,0.0002215,2]
[404343700,1770070254476,-151.0,0.0002215,2]
[404343701,1770070254486,-1503.0,0.0002215,2]
[404343702,1770070254496,-151.0,0.0002215,2]
[404343703,1770070254506,-151.0,0.0002215,2]
[404343704,1770070254515,-151.0,0.0002215,2]
[404343705,1770070254525,-151.0,0.0002215,2]
[404343706,1770070254535,-151.0,0.0002215,2]
[404343707,1770070254544,-1503.0,0.0002215,2]
[404343708,1770070254554,-151.0,0.0002215,2]
[404343709,1770070254564,-1503.0,0.0002215,2]
[404343710,1770070254573,-151.0,0.0002215,2]
[404343711,1770070254583,-1503.0,0.0002215,2]
[404343712,1770070254593,-151.0,0.0002215,2]
[404343713,1770070254603,-1503.0,0.0002215,2]
[404343714,1770070254613,-151.0,0.0002215,2]
[404343715,1770070254623,-1503.0,0.0002215,2]
[404343716,1770070254633,-151.0,0.0002215,2]
[404343717,1770070254643,-1503.0,0.0002215,2]
[404343718,1770070254652,-151.0,0.0002215,2]
[404343719,1770070254662,-1503.0,0.0002215,2]
[404343720,1770070254672,-1503.0,0.0002215,2]
[404343721,1770070254682,-151.0,0.0002215,2]
[404343722,1770070254692,-1503.0,0.0002215,2]
[404343723,1770070254701,-151.0,0.0002215,2]
[404343724,1770070254711,-1503.0,0.0002215,2]
[404343725,1770070254720,-151.0,0.0002215,2]
[404343726,1770070254730,-1503.0,0.0002215,2]
[404343727,1770070254740,-151.0,0.0002215,2]
[404343728,1770070254749,-1503.0,0.0002215,2]
[404343729,1770070254758,-151.0,0.0002215,2]
[404343730,1770070254768,-1503.0,0.0002215,2]
[404343731,1770070254779,-151.0,0.0002215,2]
[404343732,1770070254788,-1503.0,0.0002215,2]
[404343733,1770070254798,-151.0,0.0002215,2]
[404343734,1770070254807,-1503.0,0.0002215,2]
[404343735,1770070254817,-1503.0,0.0002215,2]
[404343736,1770070254826,-1503.0,0.0002215,2]
[404343737,1770070254836,-1503.0,0.0002215,2]
[404343738,1770070254845,-1503.0,0.0002215,2]
[404343739,1770070254854,-1503.0,0.0002215,2]
[404343740,1770070254864,-1503.0,0.0002215,2]
[404343741,1770070254873,-1503.0,0.0002215,2]
[404343742,1770070254882,-1503.0,0.0002215,2]
[404343743,1770070254892,-1503.0,0.0002215,2]
[404343744,1770070254901,-1503.0,0.0002215,2]
[404343745,1770070254911,-1503.0,0.0002215,2]
[404343746,1770070254920,-616.0,0.000222,2]
[404343747,1770070254929,-401.19111454,0.00022248,2]
[404343748,1770070254939,-644.79446246,0.00022251,2]
[404343749,1770070254948,-804.17102365,0.00022251,2]
[404343750,1770070254958,-301.1433787,0.00022254,2]
[404343751,1770070254967,-603.0,0.000223,2]
[404343752,1770070254976,-984.0,0.000223,2]
[404343753,1770070254986,-817.0,0.00022322,10]
[404343754,1770070254995,-410.61,0.00022331,2]
[404343755,1770070255006,-503.0,0.00022342,5]
[404343756,1770070255015,-500.0,0.00022418,2]
[404343757,1770070255024,-500.0,0.00022438,2]
[404343758,1770070255034,-159.60859955,0.00022461,2]
[404343759,1770070255043,-19920.69,0.00022466,2]
[404343760,1770070255052,-546.18515186,0.00022466,2]
[404343761,1770070255062,-750.0,0.00022466,2]
[404343762,1770070255071,-35542.5774449,0.000225,2]
[404343763,1770070255080,-839.0,0.0002252,2]
[404343764,1770070255090,-3609.90023483,0.000226,2]
[404343765,1770070255100,-255.83699043,0.000226,2]
[404343766,1770070255109,-165.79,0.00022603,2]
[404343767,1770070255119,-616.0,0.00022637,2]
[404343768,1770070255128,-1334.0,0.00022637,2]
[404343769,1770070255137,-1410.0,0.00022664,2]
[404343770,1770070255146,-1271.0,0.00022664,2]
[404343771,1770070255156,-150.0,0.00022664,2]
[404343772,1770070255165,-1205.0,0.00022674,2]
[404343773,1770070255174,-917.0,0.00022674,2]
[404343774,1770070255183,-1316.0,0.00022674,2]
[404343775,1770070255193,-2445.0,0.00022674,2]
[404343776,1770070255202,-6579.0,0.00022674,2]
[404343777,1770070255211,-3253.0,0.00022674,2]
[404343778,1770070255221,-523.93162804,0.0002271,2]
[404343779,1770070255234,-9563.9,0.0002274,2]
[404343780,1770070255243,-150.01591605,0.0002278,2]
[404343781,1770070255252,-200.0,0.000228,2]
[404343782,1770070255262,-262744.13834339,0.00023,2]